[Event "Titled Tuesday Blitz March 28 Early 2023"]
[White "Alex_Sahakyan2006"]
[Black "Harriott, Tyrell"]
[BlackFideId "2086484"]
[WhiteElo "2590"]
[BlackElo "2107"]
[Result "1-0"]
[Round "05"]
[TimeControl "180+2"]
[Date "2023.03.28"]
[WhiteClock "0:01:28"]
[BlackClock "0:00:55"]

1. Nc3 {[%clk 0:02:59]}  e6 {[%clk 0:02:59]} 2. Nf3 {[%clk 0:02:53]}  d5 {[%clk 0:03:00]} 3. g3 {[%clk 0:02:51]}  Bd6 {[%clk 0:03:01]} 4. Bg2 {[%clk 0:02:51]}  f5 {[%clk 0:03:01]} 5. O-O {[%clk 0:02:50]}  f4 {[%clk 0:03:02]} 6. d3 {[%clk 0:02:48]}  fxg3 {[%clk 0:03:02]} 7. hxg3 {[%clk 0:02:49]}  Nf6 {[%clk 0:03:02]} 8. e4 {[%clk 0:02:49]}  Bb4 {[%clk 0:02:51]} 9. e5 {[%clk 0:02:45]}  Ng4 {[%clk 0:02:49]} 10. d4 {[%clk 0:02:39]}  O-O {[%clk 0:02:46]} 11. Ng5 {[%clk 0:02:38]}  Nh6 {[%clk 0:02:43]} 12. Qd3 {[%clk 0:02:37]}  Nf5 {[%clk 0:02:35]} 13. g4 {[%clk 0:02:36]}  h6 {[%clk 0:02:35]} 14. gxf5 {[%clk 0:02:34]}  hxg5 {[%clk 0:02:34]} 15. fxe6 {[%clk 0:02:13]}  Bxe6 {[%clk 0:02:23]} 16. Qg6 {[%clk 0:02:12]}  Qd7 {[%clk 0:02:08]} 17. Qxe6+ {[%clk 0:01:54]}  Qxe6 {[%clk 0:02:07]} 18. Bxd5 {[%clk 0:01:55]}  Qf7 {[%clk 0:01:45]} 19. Bxf7+ {[%clk 0:01:53]}  Kxf7 {[%clk 0:01:44]} 20. Nd5 {[%clk 0:01:52]}  Ba5 {[%clk 0:01:43]} 21. Bxg5 {[%clk 0:01:46]}  c6 {[%clk 0:01:41]} 22. Nf4 {[%clk 0:01:45]}  Na6 {[%clk 0:01:30]} 23. c3 {[%clk 0:01:42]}  Kg8 {[%clk 0:01:27]} 24. Ng6 {[%clk 0:01:34]}  Rfe8 {[%clk 0:01:17]} 25. f4 {[%clk 0:01:33]}  Bb6 {[%clk 0:01:11]} 26. Kg2 {[%clk 0:01:32]}  c5 {[%clk 0:01:11]} 27. d5 {[%clk 0:01:31]}  Nc7 {[%clk 0:01:10]} 28. c4 {[%clk 0:01:31]}  Ba5 {[%clk 0:01:03]} 29. f5 {[%clk 0:01:28]}  Na6 {[%clk 0:00:57]} 30. e6 {[%clk 0:01:28]}  Bc7 {[%clk 0:00:55]} 31. Rh1 {[%clk 0:01:28]} 1-0


[Site "https://www.chess.com"]

[Event "Titled Tuesday Blitz March 28 Early 2023"]
[White "Crevatin, Leo"]
[Black "Melaugh, Shane"]
[WhiteFideId "1726307"]
[BlackFideId "2509580"]
[WhiteElo "2190"]
[BlackElo "2034"]
[Result "1/2-1/2"]
[Round "05"]
[TimeControl "180+2"]
[Date "2023.03.28"]
[WhiteClock "0:00:03"]
[BlackClock "0:00:04"]

1. d4 {[%clk 0:03:00]}  e6 {[%clk 0:02:54]} 2. c4 {[%clk 0:02:59]}  f5 {[%clk 0:02:54]} 3. g3 {[%clk 0:02:59]}  Nf6 {[%clk 0:02:54]} 4. Bg2 {[%clk 0:02:59]}  Be7 {[%clk 0:02:53]} 5. Nf3 {[%clk 0:02:59]}  O-O {[%clk 0:02:54]} 6. O-O {[%clk 0:02:59]}  d6 {[%clk 0:02:55]} 7. b3 {[%clk 0:02:58]}  Qe8 {[%clk 0:02:47]} 8. Bb2 {[%clk 0:02:56]}  Qh5 {[%clk 0:02:45]} 9. Nbd2 {[%clk 0:02:55]}  Nc6 {[%clk 0:02:44]} 10. Re1 {[%clk 0:02:48]}  e5 {[%clk 0:01:44]} 11. dxe5 {[%clk 0:02:43]}  dxe5 {[%clk 0:01:44]} 12. Nf1 {[%clk 0:02:15]}  e4 {[%clk 0:01:16]} 13. Ne5 {[%clk 0:02:15]}  Nxe5 {[%clk 0:01:14]} 14. Bxe5 {[%clk 0:02:15]}  Bb4 {[%clk 0:01:13]} 15. Bxc7 {[%clk 0:01:38]}  Bxe1 {[%clk 0:01:11]} 16. Qxe1 {[%clk 0:01:39]}  Be6 {[%clk 0:01:10]} 17. Ne3 {[%clk 0:01:36]}  Rac8 {[%clk 0:01:00]} 18. Be5 {[%clk 0:01:34]}  Rcd8 {[%clk 0:00:58]} 19. a4 {[%clk 0:01:29]}  Rd7 {[%clk 0:00:45]} 20. Bf1 {[%clk 0:01:25]}  Ng4 {[%clk 0:00:42]} 21. Nxg4 {[%clk 0:01:23]}  Qxg4 {[%clk 0:00:43]} 22. e3 {[%clk 0:01:15]}  Rfd8 {[%clk 0:00:34]} 23. Bd4 {[%clk 0:01:13]}  a6 {[%clk 0:00:30]} 24. Be2 {[%clk 0:01:08]}  Qg6 {[%clk 0:00:30]} 25. Kh1 {[%clk 0:01:04]}  Qf7 {[%clk 0:00:31]} 26. Qb4 {[%clk 0:01:00]}  Qe7 {[%clk 0:00:30]} 27. Qc3 {[%clk 0:00:57]}  Rc8 {[%clk 0:00:24]} 28. c5 {[%clk 0:00:45]}  Qf7 {[%clk 0:00:22]} 29. b4 {[%clk 0:00:44]}  Rcd8 {[%clk 0:00:22]} 30. b5 {[%clk 0:00:40]}  axb5 {[%clk 0:00:22]} 31. axb5 {[%clk 0:00:39]}  Bd5 {[%clk 0:00:22]} 32. Kg1 {[%clk 0:00:37]}  h5 {[%clk 0:00:19]} 33. h4 {[%clk 0:00:28]}  g6 {[%clk 0:00:17]} 34. Ra7 {[%clk 0:00:21]}  Kh7 {[%clk 0:00:17]} 35. Kh2 {[%clk 0:00:21]}  Rc8 {[%clk 0:00:17]} 36. Qa5 {[%clk 0:00:20]}  Bc4 {[%clk 0:00:15]} 37. Bxc4 {[%clk 0:00:17]}  Qxc4 {[%clk 0:00:16]} 38. c6 {[%clk 0:00:11]}  Qe2 {[%clk 0:00:10]} 39. Kg1 {[%clk 0:00:07]}  Qd1+ {[%clk 0:00:10]} 40. Kg2 {[%clk 0:00:07]}  Qf3+ {[%clk 0:00:10]} 41. Kg1 {[%clk 0:00:08]}  Rdc7 {[%clk 0:00:06]} 42. Qc3 {[%clk 0:00:02]}  bxc6 {[%clk 0:00:04]} 43. b6 {[%clk 0:00:02]}  Qd1+ {[%clk 0:00:04]} 44. Kg2 {[%clk 0:00:02]}  Qf3+ {[%clk 0:00:04]} 45. Kg1 {[%clk 0:00:02]}  Qd1+ {[%clk 0:00:04]} 46. Kg2 {[%clk 0:00:03]}  Qf3+ {[%clk 0:00:04]} 47. Kg1 {[%clk 0:00:03]} 1/2-1/2


[Site "https://www.chess.com"]

[Event "Titled Tuesday Blitz March 28 Early 2023"]
[White "Jeet, Jain"]
[Black "Stalri"]
[WhiteFideId "5073022"]
[WhiteElo "2067"]
[BlackElo "2344"]
[Result "1-0"]
[Round "05"]
[TimeControl "180+2"]
[Date "2023.03.28"]
[WhiteClock "0:00:14"]
[BlackClock "0:00:30"]

1. c4 {[%clk 0:02:59]}  c5 {[%clk 0:02:59]} 2. Nc3 {[%clk 0:03:00]}  Nc6 {[%clk 0:02:59]} 3. Nf3 {[%clk 0:03:00]}  Nf6 {[%clk 0:02:59]} 4. e3 {[%clk 0:02:58]}  e6 {[%clk 0:02:58]} 5. d4 {[%clk 0:02:57]}  cxd4 {[%clk 0:02:58]} 6. Nxd4 {[%clk 0:02:56]}  Be7 {[%clk 0:02:57]} 7. Nc2 {[%clk 0:02:51]}  O-O {[%clk 0:02:57]} 8. e4 {[%clk 0:02:51]}  a6 {[%clk 0:02:56]} 9. Be2 {[%clk 0:02:50]}  b5 {[%clk 0:02:43]} 10. cxb5 {[%clk 0:02:49]}  axb5 {[%clk 0:02:44]} 11. Bxb5 {[%clk 0:02:48]}  Qa5 {[%clk 0:02:40]} 12. Bd3 {[%clk 0:02:45]}  Ne5 {[%clk 0:02:34]} 13. Be3 {[%clk 0:02:21]}  Nxd3+ {[%clk 0:02:32]} 14. Qxd3 {[%clk 0:02:22]}  Ba6 {[%clk 0:02:32]} 15. Qd4 {[%clk 0:02:22]}  Rab8 {[%clk 0:02:21]} 16. Rb1 {[%clk 0:02:13]}  Rfc8 {[%clk 0:02:18]} 17. b4 {[%clk 0:01:59]}  Qa4 {[%clk 0:02:10]} 18. Nxa4 {[%clk 0:01:57]}  Rxc2 {[%clk 0:02:08]} 19. Qa7 {[%clk 0:01:36]}  Rxb4 {[%clk 0:01:34]} 20. Rxb4 {[%clk 0:01:19]}  Bxb4+ {[%clk 0:01:35]} 21. Kd1 {[%clk 0:01:19]}  Rc6 {[%clk 0:01:36]} 22. e5 {[%clk 0:00:33]}  Nd5 {[%clk 0:01:23]} 23. Qa8+ {[%clk 0:00:27]}  Bc8 {[%clk 0:01:24]} 24. Ke2 {[%clk 0:00:24]}  Bf8 {[%clk 0:00:44]} 25. Rc1 {[%clk 0:00:19]}  Ra6 {[%clk 0:00:41]} 26. Qxc8 {[%clk 0:00:17]}  Rxa4 {[%clk 0:00:41]} 27. Bc5 {[%clk 0:00:17]}  Rxa2+ {[%clk 0:00:41]} 28. Kf1 {[%clk 0:00:16]}  h6 {[%clk 0:00:38]} 29. Qxf8+ {[%clk 0:00:15]}  Kh7 {[%clk 0:00:38]} 30. Qxf7 {[%clk 0:00:15]}  d6 {[%clk 0:00:35]} 31. exd6 {[%clk 0:00:15]}  Ra8 {[%clk 0:00:34]} 32. Bd4 {[%clk 0:00:14]}  Rg8 {[%clk 0:00:32]} 33. Rc8 {[%clk 0:00:14]}  Nf6 {[%clk 0:00:30]} 34. Bxf6 {[%clk 0:00:14]} 1-0


[Site "https://www.chess.com"]

[Event "Titled Tuesday Blitz March 28 Early 2023"]
[White "Cori T., Deysi"]
[Black "Shtompel, Yuriy"]
[WhiteFideId "3801934"]
[BlackFideId "14168278"]
[WhiteElo "2292"]
[BlackElo "1844"]
[Result "1/2-1/2"]
[Round "05"]
[TimeControl "180+2"]
[Date "2023.03.28"]
[WhiteClock "0:00:20"]
[BlackClock "0:00:16"]

1. b3 {[%clk 0:03:00]}  e5 {[%clk 0:02:57]} 2. Bb2 {[%clk 0:03:00]}  f6 {[%clk 0:02:58]} 3. c4 {[%clk 0:02:59]}  Nc6 {[%clk 0:02:58]} 4. Nc3 {[%clk 0:02:59]}  Bc5 {[%clk 0:02:54]} 5. e3 {[%clk 0:02:59]}  Nge7 {[%clk 0:02:51]} 6. Nge2 {[%clk 0:02:59]}  d6 {[%clk 0:02:46]} 7. d4 {[%clk 0:02:59]}  Bb4 {[%clk 0:02:44]} 8. a3 {[%clk 0:02:58]}  Bxc3+ {[%clk 0:02:44]} 9. Bxc3 {[%clk 0:02:57]}  Bf5 {[%clk 0:02:39]} 10. Ng3 {[%clk 0:02:56]}  Bg6 {[%clk 0:02:35]} 11. h4 {[%clk 0:02:55]}  h5 {[%clk 0:02:30]} 12. Be2 {[%clk 0:02:53]}  exd4 {[%clk 0:02:22]} 13. exd4 {[%clk 0:02:52]}  Qd7 {[%clk 0:02:21]} 14. d5 {[%clk 0:02:41]}  Ne5 {[%clk 0:02:18]} 15. Nxh5 {[%clk 0:02:34]}  O-O-O {[%clk 0:01:47]} 16. Nxg7 {[%clk 0:02:29]}  Nxd5 {[%clk 0:01:42]} 17. Bxe5 {[%clk 0:02:09]}  dxe5 {[%clk 0:01:27]} 18. Qxd5 {[%clk 0:01:50]}  Qxg7 {[%clk 0:01:20]} 19. Qe6+ {[%clk 0:01:31]}  Kb8 {[%clk 0:01:18]} 20. h5 {[%clk 0:01:30]}  Be4 {[%clk 0:01:11]} 21. Qg4 {[%clk 0:01:26]}  Qxg4 {[%clk 0:01:06]} 22. Bxg4 {[%clk 0:01:27]}  Bxg2 {[%clk 0:01:07]} 23. Rh2 {[%clk 0:01:26]}  Be4 {[%clk 0:01:06]} 24. f3 {[%clk 0:01:14]}  f5 {[%clk 0:00:40]} 25. fxe4 {[%clk 0:00:56]}  fxg4 {[%clk 0:00:40]} 26. Rd1 {[%clk 0:00:51]}  Rdg8 {[%clk 0:00:34]} 27. Kf1 {[%clk 0:00:42]}  c6 {[%clk 0:00:25]} 28. Kg2 {[%clk 0:00:39]}  g3 {[%clk 0:00:22]} 29. Rh3 {[%clk 0:00:39]}  Rg4 {[%clk 0:00:18]} 30. Re1 {[%clk 0:00:35]}  Rh6 {[%clk 0:00:15]} 31. Re3 {[%clk 0:00:31]}  Rg5 {[%clk 0:00:11]} 32. Rexg3 {[%clk 0:00:22]}  Rgxh5 {[%clk 0:00:12]} 33. Rxh5 {[%clk 0:00:20]}  Rxh5 {[%clk 0:00:13]} 34. c5 {[%clk 0:00:21]}  b6 {[%clk 0:00:12]} 35. Rg8+ {[%clk 0:00:20]}  Kb7 {[%clk 0:00:13]} 36. Rg7+ {[%clk 0:00:20]}  Kb8 {[%clk 0:00:13]} 37. cxb6 {[%clk 0:00:20]}  axb6 {[%clk 0:00:13]} 38. Re7 {[%clk 0:00:20]}  Kc8 {[%clk 0:00:11]} 39. Kg3 {[%clk 0:00:19]}  Kd8 {[%clk 0:00:11]} 40. Rb7 {[%clk 0:00:19]}  b5 {[%clk 0:00:10]} 41. a4 {[%clk 0:00:20]}  bxa4 {[%clk 0:00:08]} 42. bxa4 {[%clk 0:00:21]}  Rh1 {[%clk 0:00:09]} 43. a5 {[%clk 0:00:20]}  Ra1 {[%clk 0:00:09]} 44. Ra7 {[%clk 0:00:20]}  c5 {[%clk 0:00:09]} 45. Kg4 {[%clk 0:00:20]}  Kc8 {[%clk 0:00:08]} 46. Kf5 {[%clk 0:00:20]}  Kb8 {[%clk 0:00:09]} 47. Ra6 {[%clk 0:00:20]}  Kb7 {[%clk 0:00:09]} 48. Rb6+ {[%clk 0:00:20]}  Kc7 {[%clk 0:00:09]} 49. Kxe5 {[%clk 0:00:20]}  Rxa5 {[%clk 0:00:09]} 50. Re6 {[%clk 0:00:19]}  Ra1 {[%clk 0:00:06]} 51. Kd5 {[%clk 0:00:19]}  Rc1 {[%clk 0:00:05]} 52. Re7+ {[%clk 0:00:20]}  Kd8 {[%clk 0:00:04]} 53. Ra7 {[%clk 0:00:20]}  c4 {[%clk 0:00:04]} 54. e5 {[%clk 0:00:20]}  Rd1+ {[%clk 0:00:04]} 55. Kxc4 {[%clk 0:00:20]}  Ke8 {[%clk 0:00:04]} 56. Kc5 {[%clk 0:00:18]}  Rh1 {[%clk 0:00:04]} 57. Kd6 {[%clk 0:00:18]}  Rd1+ {[%clk 0:00:04]} 58. Ke6 {[%clk 0:00:18]}  Kf8 {[%clk 0:00:04]} 59. Ra8+ {[%clk 0:00:19]}  Kg7 {[%clk 0:00:04]} 60. Ke7 {[%clk 0:00:19]}  Re1 {[%clk 0:00:04]} 61. e6 {[%clk 0:00:19]}  Re4 {[%clk 0:00:04]} 62. Rd8 {[%clk 0:00:18]}  Re3 {[%clk 0:00:04]} 63. Kd7 {[%clk 0:00:18]}  Kf6 {[%clk 0:00:04]} 64. Rg8 {[%clk 0:00:18]}  Rd3+ {[%clk 0:00:01]} 65. Kc6 {[%clk 0:00:11]}  Kxe6 {[%clk 0:00:02]} 66. Re8+ {[%clk 0:00:12]}  Kf5 {[%clk 0:00:02]} 67. Rf8+ {[%clk 0:00:12]}  Ke4 {[%clk 0:00:03]} 68. Re8+ {[%clk 0:00:12]}  Kf3 {[%clk 0:00:03]} 69. Kc5 {[%clk 0:00:12]}  Re3 {[%clk 0:00:04]} 70. Rf8+ {[%clk 0:00:12]}  Ke2 {[%clk 0:00:04]} 71. Rh8 {[%clk 0:00:13]}  Re4 {[%clk 0:00:05]} 72. Rh2+ {[%clk 0:00:13]}  Kf3 {[%clk 0:00:06]} 73. Ra2 {[%clk 0:00:13]}  Ke3 {[%clk 0:00:07]} 74. Kd5 {[%clk 0:00:14]}  Rf4 {[%clk 0:00:07]} 75. Ra3+ {[%clk 0:00:14]}  Kf2 {[%clk 0:00:08]} 76. Ke5 {[%clk 0:00:15]}  Rf3 {[%clk 0:00:08]} 77. Ra2+ {[%clk 0:00:15]}  Kg3 {[%clk 0:00:08]} 78. Ke4 {[%clk 0:00:15]}  Rb3 {[%clk 0:00:09]} 79. Ra4 {[%clk 0:00:14]}  Kh3 {[%clk 0:00:09]} 80. Ra1 {[%clk 0:00:15]}  Kg3 {[%clk 0:00:09]} 81. Rg1+ {[%clk 0:00:15]}  Kh2 {[%clk 0:00:09]} 82. Rg7 {[%clk 0:00:16]}  Kh3 {[%clk 0:00:09]} 83. Kf4 {[%clk 0:00:16]}  Rb4+ {[%clk 0:00:10]} 84. Kf3 {[%clk 0:00:16]}  Rb3+ {[%clk 0:00:10]} 85. Kf2 {[%clk 0:00:16]}  Rb2+ {[%clk 0:00:10]} 86. Ke3 {[%clk 0:00:16]}  Rb3+ {[%clk 0:00:11]} 87. Kd2 {[%clk 0:00:17]}  Rb2+ {[%clk 0:00:12]} 88. Kc3 {[%clk 0:00:17]}  Re2 {[%clk 0:00:12]} 89. Kd3 {[%clk 0:00:17]}  Re8 {[%clk 0:00:12]} 90. Rg6 {[%clk 0:00:18]}  Kh4 {[%clk 0:00:13]} 91. Kd4 {[%clk 0:00:17]}  Kh3 {[%clk 0:00:13]} 92. Rg1 {[%clk 0:00:17]}  Kh4 {[%clk 0:00:13]} 93. Rh1+ {[%clk 0:00:17]}  Kg4 {[%clk 0:00:13]} 94. Rg1+ {[%clk 0:00:18]}  Kf4 {[%clk 0:00:14]} 95. Rf1+ {[%clk 0:00:19]}  Kg4 {[%clk 0:00:14]} 96. Kd5 {[%clk 0:00:19]}  Kg5 {[%clk 0:00:15]} 97. Kd6 {[%clk 0:00:19]}  Kg4 {[%clk 0:00:15]} 98. Kd7 {[%clk 0:00:20]}  Re2 {[%clk 0:00:15]} 99. Rg1+ {[%clk 0:00:20]}  Kf3 {[%clk 0:00:15]} 100. Rf1+ {[%clk 0:00:20]}  Kg4 {[%clk 0:00:15]} 101. Rg1+ {[%clk 0:00:20]}  Kf3 {[%clk 0:00:16]} 102. Rf1+ {[%clk 0:00:20]}  Kg4 {[%clk 0:00:16]} 1/2-1/2


[Site "https://www.chess.com"]

[Event "Titled Tuesday Blitz March 28 Early 2023"]
[White "monkins"]
[Black "Arias, Juan Cruz"]
[BlackFideId "118540"]
[WhiteElo "2281"]
[BlackElo "2243"]
[Result "0-1"]
[Round "05"]
[TimeControl "180+2"]
[Date "2023.03.28"]
[WhiteClock "0:00:08"]
[BlackClock "0:00:28"]

1. Nf3 {[%clk 0:02:57]}  d5 {[%clk 0:02:59]} 2. c4 {[%clk 0:02:57]}  e6 {[%clk 0:02:58]} 3. g3 {[%clk 0:02:56]}  Nf6 {[%clk 0:02:50]} 4. Bg2 {[%clk 0:02:56]}  dxc4 {[%clk 0:02:50]} 5. Qa4+ {[%clk 0:02:55]}  Bd7 {[%clk 0:02:47]} 6. Qxc4 {[%clk 0:02:55]}  c5 {[%clk 0:02:47]} 7. d4 {[%clk 0:02:50]}  b5 {[%clk 0:02:41]} 8. Qc2 {[%clk 0:02:49]}  Na6 {[%clk 0:02:35]} 9. O-O {[%clk 0:02:44]}  Rc8 {[%clk 0:02:29]} 10. Qd1 {[%clk 0:02:37]}  c4 {[%clk 0:02:23]} 11. Bf4 {[%clk 0:02:14]}  Be7 {[%clk 0:02:16]} 12. Nbd2 {[%clk 0:02:13]}  O-O {[%clk 0:02:14]} 13. e4 {[%clk 0:02:05]}  b4 {[%clk 0:02:12]} 14. Ne5 {[%clk 0:01:53]}  Bb5 {[%clk 0:02:07]} 15. Be3 {[%clk 0:01:03]}  c3 {[%clk 0:02:04]} 16. bxc3 {[%clk 0:01:03]}  bxc3 {[%clk 0:02:03]} 17. Nb3 {[%clk 0:01:01]}  Bxf1 {[%clk 0:02:01]} 18. Qxf1 {[%clk 0:01:00]}  Nb4 {[%clk 0:01:57]} 19. Qe2 {[%clk 0:00:46]}  Nd7 {[%clk 0:01:50]} 20. Nc4 {[%clk 0:00:33]}  Nb6 {[%clk 0:01:46]} 21. Nca5 {[%clk 0:00:33]}  Qd7 {[%clk 0:01:44]} 22. Rc1 {[%clk 0:00:30]}  Na4 {[%clk 0:01:39]} 23. d5 {[%clk 0:00:19]}  exd5 {[%clk 0:01:35]} 24. exd5 {[%clk 0:00:20]}  Bd6 {[%clk 0:01:26]} 25. Nc6 {[%clk 0:00:18]}  Rfe8 {[%clk 0:01:23]} 26. Qb5 {[%clk 0:00:17]}  Nb6 {[%clk 0:01:17]} 27. Bxb6 {[%clk 0:00:16]}  axb6 {[%clk 0:01:15]} 28. Qxb6 {[%clk 0:00:17]}  Nd3 {[%clk 0:01:09]} 29. Rxc3 {[%clk 0:00:14]}  Re1+ {[%clk 0:01:07]} 30. Bf1 {[%clk 0:00:14]}  Qh3 {[%clk 0:00:55]} 31. Nd2 {[%clk 0:00:14]}  Nf4 {[%clk 0:00:30]} 32. Re3 {[%clk 0:00:08]}  Qg2# {[%clk 0:00:28]} 0-1


[Site "https://www.chess.com"]

[Event "Titled Tuesday Blitz March 28 Early 2023"]
[White "Shevtchenko, Olesya"]
[Black "babbilator"]
[WhiteFideId "24131890"]
[WhiteElo "2003"]
[BlackElo "2247"]
[Result "1-0"]
[Round "05"]
[TimeControl "180+2"]
[Date "2023.03.28"]
[WhiteClock "0:00:22"]
[BlackClock "0:00:04"]

1. e4 {[%clk 0:03:00]}  c5 {[%clk 0:02:58]} 2. Nf3 {[%clk 0:02:57]}  e6 {[%clk 0:02:58]} 3. c3 {[%clk 0:02:56]}  d5 {[%clk 0:02:56]} 4. exd5 {[%clk 0:02:57]}  Qxd5 {[%clk 0:02:56]} 5. d4 {[%clk 0:02:58]}  Nf6 {[%clk 0:02:57]} 6. Be2 {[%clk 0:02:57]}  Be7 {[%clk 0:02:56]} 7. O-O {[%clk 0:02:56]}  O-O {[%clk 0:02:53]} 8. c4 {[%clk 0:02:55]}  Qd8 {[%clk 0:02:51]} 9. dxc5 {[%clk 0:02:53]}  Bxc5 {[%clk 0:02:49]} 10. Nc3 {[%clk 0:02:54]}  a6 {[%clk 0:02:46]} 11. a3 {[%clk 0:02:52]}  Qc7 {[%clk 0:02:31]} 12. b4 {[%clk 0:02:44]}  Be7 {[%clk 0:02:29]} 13. Bb2 {[%clk 0:02:44]}  b6 {[%clk 0:02:26]} 14. Rc1 {[%clk 0:02:34]}  Bb7 {[%clk 0:02:27]} 15. Qb3 {[%clk 0:02:33]}  Nbd7 {[%clk 0:02:26]} 16. Rfd1 {[%clk 0:02:33]}  Rfd8 {[%clk 0:02:21]} 17. h3 {[%clk 0:02:14]}  Rac8 {[%clk 0:02:19]} 18. Na4 {[%clk 0:02:13]}  Bc6 {[%clk 0:01:59]} 19. Nd4 {[%clk 0:01:56]}  Bb7 {[%clk 0:01:59]} 20. Qe3 {[%clk 0:01:47]}  Nf8 {[%clk 0:01:20]} 21. c5 {[%clk 0:01:40]}  bxc5 {[%clk 0:01:09]} 22. Nxc5 {[%clk 0:01:39]}  Bxc5 {[%clk 0:00:59]} 23. Rxc5 {[%clk 0:01:37]}  Qb8 {[%clk 0:00:56]} 24. Rdc1 {[%clk 0:01:20]}  N6d7 {[%clk 0:00:37]} 25. Nc6 {[%clk 0:01:10]}  Bxc6 {[%clk 0:00:37]} 26. Rxc6 {[%clk 0:01:11]}  Rxc6 {[%clk 0:00:32]} 27. Rxc6 {[%clk 0:01:12]}  a5 {[%clk 0:00:32]} 28. b5 {[%clk 0:01:03]}  Ng6 {[%clk 0:00:20]} 29. a4 {[%clk 0:00:34]}  Nf6 {[%clk 0:00:15]} 30. g3 {[%clk 0:00:28]}  Nd5 {[%clk 0:00:14]} 31. Qc1 {[%clk 0:00:28]}  Nb4 {[%clk 0:00:14]} 32. Rc7 {[%clk 0:00:24]}  h6 {[%clk 0:00:12]} 33. Bf3 {[%clk 0:00:23]}  Qb6 {[%clk 0:00:11]} 34. Qc5 {[%clk 0:00:22]}  Qb8 {[%clk 0:00:10]} 35. Bc3 {[%clk 0:00:20]}  Nd5 {[%clk 0:00:08]} 36. Bxd5 {[%clk 0:00:20]}  exd5 {[%clk 0:00:09]} 37. Qa7 {[%clk 0:00:20]}  Qxa7 {[%clk 0:00:04]} 38. Rxa7 {[%clk 0:00:21]}  d4 {[%clk 0:00:04]} 39. Bxa5 {[%clk 0:00:22]} 1-0


[Site "https://www.chess.com"]

[Event "Titled Tuesday Blitz March 28 Early 2023"]
[White "Alinasab, Mobina"]
[Black "Quirke, Jeffrey"]
[WhiteFideId "12528897"]
[BlackFideId "2013029"]
[WhiteElo "2141"]
[BlackElo "2234"]
[Result "1-0"]
[Round "05"]
[TimeControl "180+2"]
[Date "2023.03.28"]
[WhiteClock "0:01:41"]
[BlackClock "0:01:49"]

1. Nf3 {[%clk 0:03:00]}  g6 {[%clk 0:02:59]} 2. d4 {[%clk 0:03:00]}  Bg7 {[%clk 0:02:59]} 3. g3 {[%clk 0:02:53]}  Nf6 {[%clk 0:02:57]} 4. Bg2 {[%clk 0:02:53]}  O-O {[%clk 0:02:57]} 5. O-O {[%clk 0:02:54]}  d6 {[%clk 0:02:57]} 6. b3 {[%clk 0:02:54]}  c5 {[%clk 0:02:50]} 7. Bb2 {[%clk 0:02:54]}  cxd4 {[%clk 0:02:49]} 8. Nxd4 {[%clk 0:02:41]}  Qb6 {[%clk 0:02:41]} 9. c4 {[%clk 0:02:40]}  Nc6 {[%clk 0:02:40]} 10. Nxc6 {[%clk 0:02:39]}  bxc6 {[%clk 0:02:39]} 11. Nc3 {[%clk 0:02:40]}  Bb7 {[%clk 0:02:32]} 12. Rc1 {[%clk 0:02:38]}  c5 {[%clk 0:02:29]} 13. Bxb7 {[%clk 0:02:16]}  Qxb7 {[%clk 0:02:28]} 14. Qd3 {[%clk 0:02:16]}  a5 {[%clk 0:02:28]} 15. Rc2 {[%clk 0:02:13]}  Nd7 {[%clk 0:02:21]} 16. Nd5 {[%clk 0:02:06]}  Rfe8 {[%clk 0:02:07]} 17. Qe4 {[%clk 0:01:43]}  Nb6 {[%clk 0:01:49]} 18. Nf6+ {[%clk 0:01:41]} 1-0


[Site "https://www.chess.com"]

[Event "Titled Tuesday Blitz March 28 Early 2023"]
[White "Delorme, Alban"]
[Black "Arencibia Monduy, Antonio"]
[WhiteFideId "623636"]
[BlackFideId "3507939"]
[WhiteElo "2196"]
[BlackElo "2520"]
[Result "1-0"]
[Round "05"]
[TimeControl "180+2"]
[Date "2023.03.28"]
[WhiteClock "0:00:12"]
[BlackClock "0:00:01"]

1. e4 {[%clk 0:03:00]}  e6 {[%clk 0:03:00]} 2. d4 {[%clk 0:02:58]}  d5 {[%clk 0:03:00]} 3. Nc3 {[%clk 0:02:59]}  dxe4 {[%clk 0:03:00]} 4. Nxe4 {[%clk 0:02:59]}  Nd7 {[%clk 0:03:00]} 5. Nf3 {[%clk 0:02:55]}  Ngf6 {[%clk 0:03:00]} 6. Nxf6+ {[%clk 0:02:55]}  Nxf6 {[%clk 0:03:01]} 7. Bd3 {[%clk 0:02:53]}  Be7 {[%clk 0:03:01]} 8. c3 {[%clk 0:02:48]}  O-O {[%clk 0:03:01]} 9. O-O {[%clk 0:02:49]}  b6 {[%clk 0:03:01]} 10. Qe2 {[%clk 0:02:38]}  Bb7 {[%clk 0:03:01]} 11. Bg5 {[%clk 0:02:36]}  h6 {[%clk 0:02:48]} 12. Bxf6 {[%clk 0:02:31]}  Bxf6 {[%clk 0:02:47]} 13. Be4 {[%clk 0:02:32]}  Bxe4 {[%clk 0:02:45]} 14. Qxe4 {[%clk 0:02:33]}  Qd5 {[%clk 0:02:36]} 15. Qe2 {[%clk 0:02:11]}  Rfd8 {[%clk 0:02:30]} 16. a4 {[%clk 0:02:06]}  c5 {[%clk 0:02:21]} 17. dxc5 {[%clk 0:02:01]}  Qxc5 {[%clk 0:02:18]} 18. Rfd1 {[%clk 0:01:57]}  Qc6 {[%clk 0:02:05]} 19. a5 {[%clk 0:01:53]}  Rxd1+ {[%clk 0:02:02]} 20. Qxd1 {[%clk 0:01:50]}  bxa5 {[%clk 0:01:59]} 21. Rxa5 {[%clk 0:01:45]}  Qb6 {[%clk 0:01:50]} 22. Ra2 {[%clk 0:01:21]}  e5 {[%clk 0:01:36]} 23. Qe2 {[%clk 0:01:03]}  Qe6 {[%clk 0:01:27]} 24. Ra4 {[%clk 0:00:53]}  Qb3 {[%clk 0:01:18]} 25. Re4 {[%clk 0:00:49]}  Rd8 {[%clk 0:01:13]} 26. g3 {[%clk 0:00:45]}  Rd5 {[%clk 0:00:20]} 27. Kg2 {[%clk 0:00:24]}  a5 {[%clk 0:00:17]} 28. Nxe5 {[%clk 0:00:22]}  Bxe5 {[%clk 0:00:17]} 29. Rxe5 {[%clk 0:00:23]}  Rxe5 {[%clk 0:00:15]} 30. Qxe5 {[%clk 0:00:23]}  Qb7+ {[%clk 0:00:15]} 31. Kg1 {[%clk 0:00:20]}  Qxb2 {[%clk 0:00:11]} 32. Qxa5 {[%clk 0:00:19]}  Qb1+ {[%clk 0:00:11]} 33. Kg2 {[%clk 0:00:19]}  Qe4+ {[%clk 0:00:12]} 34. Kg1 {[%clk 0:00:16]}  Qe1+ {[%clk 0:00:12]} 35. Kg2 {[%clk 0:00:16]}  Qe4+ {[%clk 0:00:13]} 36. Kf1 {[%clk 0:00:16]}  Qb1+ {[%clk 0:00:08]} 37. Ke2 {[%clk 0:00:16]}  Qc2+ {[%clk 0:00:08]} 38. Ke3 {[%clk 0:00:16]}  Qc1+ {[%clk 0:00:08]} 39. Kf3 {[%clk 0:00:15]}  Qd1+ {[%clk 0:00:07]} 40. Kg2 {[%clk 0:00:15]}  Qd3 {[%clk 0:00:03]} 41. Qa8+ {[%clk 0:00:13]}  Kh7 {[%clk 0:00:03]} 42. Qc6 {[%clk 0:00:13]}  g6 {[%clk 0:00:02]} 43. c4 {[%clk 0:00:14]}  h5 {[%clk 0:00:02]} 44. h4 {[%clk 0:00:13]}  Kg7 {[%clk 0:00:01]} 45. c5 {[%clk 0:00:13]}  Qf5 {[%clk 0:00:01]} 46. Qd6 {[%clk 0:00:12]} 1-0


[Site "https://www.chess.com"]